Cogmind - Beta 15 @@@ ROGUE MODE // 2025.07.09 @ 17:25:50 Player: EX-OCT Result: Destroyed by AG-84121 with Assembled Focal Cannon Performance ------------- Evolutions (3) 1500 Regions Visited (11) 2200 Robots Destroyed (44) 220 Value Destroyed (761) 761 Prototype IDs (8) 160 Alien Tech Used (0) 0 Bonus (1107) 1107 TOTAL SCORE: 5948 Bonus ------- Follower Combat Kills 107 Triggered Deep Caves Wall 500 Exposed GOLEM Chamber 500 Cogmind --------- Core Integrity 0/700 Matter 290/300 Energy 100/100 System Corruption 4% Temperature Cool (13) Movement Flying (35) Location -7/Deep Caves Parts ------- > --- POWER (1) -------- (None) > --- PROPULSION (4) --- Improved Cesium-ion Thruster > --- UTILITY (6) ------ Small Storage Unit Makeshift Hacking Suite GOLEM Unit > --- WEAPON (2) ------- (None) > --- INVENTORY (8) ---- Micro Nuclear Core Surveybot 24 Scanner Surveybot 24 Chip GOLEM Unit GOLEM Unit Peak State ------------ > --- POWER ------------ Micro Nuclear Core > --- PROPULSION ------- Cooled VTOL Module Improved Surge Thruster Improved Surge Thruster Improved Surge Thruster > --- UTILITY ---------- Small Storage Unit Improved Terrain Scanner Terrain Scan Processor Reaction Control System Makeshift Hacking Suite Makeshift System Shield > --- WEAPON ----------- Guided Missile Launcher > --- INVENTORY -------- Micro Nuclear Core Cesium-ion Thruster Improved Cesium-ion Thruster Improved Surge Thruster Minigun [Rating: 53] Favorites ----------- Power Micro Nuclear Core Engine Light Ion Engine Power Core Micro Nuclear Core Reactor Cold Fusion Reactor Propulsion Cesium-ion Thruster Leg Assembled Alloy Leg Flight Unit Cesium-ion Thruster Utility Terrain Scan Processor Device Improved Terrain Scanner Storage Small Storage Unit Processor Terrain Scan Processor Hackware Hacking Suite Weapon Light Assault Rifle Energy Gun Small Laser Ballistic Gun Light Assault Rifle Launcher Guided Missile Launcher Special Weapon Plasma Cutter Impact Weapon Powered Hammer Slashing Weapon Chainsword Build | -11 -10 -10 -10 -9 -8 -8 -7 -7 -7 -7 -7 ------- Run | Yrd Mat Min Exi Min Mat Sto Fac Low Low Zio Dee Slots Evolved 6 | . . . . . 4 . 2 . . . . Power . | . . . . . . . . . . . . Propulsion 2 | . . . . . 2 . . . . . . Utility 4 | . . . . . 2 . 2 . . . . Weapon . | . . . . . . . . . . . . Parts Attached 60 | 3 10 . . 3 10 3 24 . . 5 2 Power 4 | . 2 . . . . 1 1 . . . . Engine 2 | . 2 . . . . . . . . . . Core 1 | . . . . . . . 1 . . . . Reactor 1 | . . . . . . 1 . . . . . Propulsion 22 | . 3 . . 2 6 1 9 . . . 1 Treads . | . . . . . . . . . . . . Leg . | . . . . . . . . . . . . Wheel . | . . . . . . . . . . . . Hover . | . . . . . . . . . . . . Flight 22 | . 3 . . 2 6 1 9 . . . 1 Utility 16 | 1 1 . . . 2 . 9 . . 2 1 Device 3 | 1 . . . . . . 1 . . . 1 Storage 1 | . . . . . . . 1 . . . . Processor 3 | . 1 . . . . . 2 . . . . Hackware 9 | . . . . . 2 . 5 . . 2 . Protection . | . . . . . . . . . . . . Artifact . | . . . . . . . . . . . . Weapon 18 | 2 4 . . 1 2 1 5 . . 3 . Energy Gun 2 | 1 . . . . . . 1 . . . . Energy Cannon . | . . . . . . . . . . . . Ballistic Gun 8 | 1 4 . . 1 2 . . . . . . Ballistic Cannon . | . . . . . . . . . . . . Launcher 2 | . . . . . . . . . . 2 . Special Weapon 3 | . . . . . . 1 1 . . 1 . Impact Weapon 1 | . . . . . . . 1 . . . . Slashing Weapon 2 | . . . . . . . 2 . . . . Piercing Weapon . | . . . . . . . . . . . . Special Melee Weapon . | . . . . . . . . . . . . Unidentified Prototypes 7 | . . . . . . 1 4 . . 2 . Parts Lost 17 | . 2 . . . 2 4 2 . . . 7 Power . | . . . . . . . . . . . . Propulsion 13 | . 2 . . . 2 3 1 . . . 5 Utility 3 | . . . . . . . 1 . . . 2 Weapon 1 | . . . . . . 1 . . . . . Highest Loss Streak 7 | . 1 . . . 2 3 1 . . . 7 To Critical Strikes . | . . . . . . . . . . . . Average Backups 4 | . 3 5 5 5 4 4 4 6 6 5 5 Power . | . . 1 1 . . . 1 1 1 1 1 Propulsion . | . . . . 1 1 1 . 3 3 3 2 Utility . | . . . . . . 1 2 . . . 1 Weapon 1 | . 2 4 4 3 2 1 1 1 1 1 . Tool/Special . | . . . . . . . . . . . . Unused Backups 12 | . 1 . . . 5 . . . . . 6 Power 1 | . . . . . . . . . . . 1 Propulsion . | . . . . . . . . . . . . Utility 5 | . 1 . . . . . . . . . 4 Weapon 6 | . . . . . 5 . . . . . 1 Tool/Special . | . . . . . . . . . . . . Average Slot Usage (%) 89 | . 79 71 71 85 93 97 92 100 100 98 80 Engine 2 | . 4 . . 7 9 5 . . . . . Core 3 | . . . . . . . 6 7 7 7 6 Flight 25 | . 18 14 14 21 35 35 25 30 30 30 27 Device 11 | . 14 14 14 14 9 9 7 15 15 15 10 Storage 1 | . . . . . . . 1 7 7 7 7 Processor 10 | . 13 14 14 14 9 9 11 7 7 7 4 Hackware 12 | . . . . . 12 18 21 15 15 15 14 Ballistic Gun 11 | . 26 28 28 28 18 16 . . . . . Special Weapon 1 | . . . . . . 1 . 7 7 5 . Slashing Weapon 4 | . . . . . . . 9 7 7 6 6 Peak Build Rating 53 | 5 10 8 8 11 31 34 47 47 47 53 47 Average Rating 28 | 2 8 8 8 9 23 28 39 47 47 48 42 On Entrance 23 | . 5 8 8 8 11 27 22 47 47 47 47 Naked Turns . | . . . . . . . . . . . . Heaviest Build 19 | 3 6 3 3 8 10 19 19 17 17 17 16 Greatest Support 25 | 3 8 4 4 8 20 19 21 17 25 17 25 Greatest Overweight (x) 1 | . 1 . . . . . . . . . . Average Overweight (x) . | . . . . . . . . . . . . Largest Inventory Capacity 8 | 5 5 5 5 5 5 5 8 8 8 8 8 Average Capacity 5 | 5 5 5 5 5 5 5 5 8 8 8 8 Most Carried 7 | . 5 5 5 5 5 5 6 6 6 6 7 Average Carried 4 | . 3 5 5 4 4 4 4 6 6 5 5 Final Capacity 8 | 5 5 5 5 5 5 5 8 8 8 8 8 Final Carried 7 | . 5 5 5 5 5 5 6 6 6 5 7 Class Distribution -------------------- 38% | Hacker-Sprinter 31% | Scavenger-Mutant 26% | Scavenger-Sprinter 3% | Mutant Dominant Class ---------------- Scavenger-Mutant | -10/Materials Scavenger-Mutant | -10/Mines Scavenger-Mutant | -10/Exiles Scavenger-Mutant | -9/Mines Scavenger-Sprinter | -8/Materials Scavenger-Sprinter | -8/Storage Hacker-Sprinter | -7/Factory Scavenger-Sprinter | -7/Lower Caves Scavenger-Sprinter | -7/Lower Caves Hacker-Sprinter | -7/Zion Hacker-Sprinter | -7/Deep Caves Resources | -11 -10 -10 -10 -9 -8 -8 -7 -7 -7 -7 -7 ----------- Run | Yrd Mat Min Exi Min Mat Sto Fac Low Low Zio Dee Matter Collected 1253 | 238 194 . 17 64 142 215 233 80 . 70 . Remotely . | . . . . . . . . . . . . Salvage Created 1555 | 63 585 . . 54 159 45 626 . . . 23 Parts 76 | 4 30 . . 6 10 4 22 . . . . Haulers Intercepted 4 | . 1 . . . . . 3 . . . . Recyclers Shooed 1 | . 1 . . . . . . . . . . Parts Field Recycled . | . . . . . . . . . . . . Retrieved Matter . | . . . . . . . . . . . . Parts Self-Destructed . | . . . . . . . . . . . . Prevented . | . . . . . . . . . . . . Kills | -11 -10 -10 -10 -9 -8 -8 -7 -7 -7 -7 -7 ------- Run | Yrd Mat Min Exi Min Mat Sto Fac Low Low Zio Dee Combat Hostiles Destroyed 22 | . 10 . . 4 1 3 4 . . . . Melee 2 | . . . . . . . 2 . . . . Guns 18 | . 10 . . 4 1 3 . . . . . Classes Destroyed 11 | 2 5 . . . 3 . 1 . . . . Worker 1 | . . . . . 1 . . . . . . Builder 1 | . 1 . . . . . . . . . . Tunneler 1 | 1 . . . . . . . . . . . Hauler 4 | . 1 . . . . . 3 . . . . Recycler 8 | 1 3 . . . 1 . 3 . . . . Operator 3 | . . . . . 2 . 1 . . . . Watcher 4 | . 3 . . . . . 1 . . . . Swarmer 13 | . 6 . . 4 . 3 . . . . . Grunt 6 | . 4 . . . . . 2 . . . . Sentry 1 | . . . . . 1 . . . . . . Programmer 2 | . . . . . . . 2 . . . . Best Kill Streak 6 | 2 6 . . 4 2 3 5 . . . . Combat Bots Only 5 | . 5 . . 4 1 3 2 . . . . Max Kills in Single Turn 2 | 1 1 . . 2 1 1 1 . . . . Gunslinging 1 | . . . . 1 . . . . . . . Exploded . | . . . . . . . . . . . . Melee 1 | . . . . . . . 1 . . . . Uniques/NPCs Destroyed . | . . . . . . . . . . . . Combat | -11 -10 -10 -10 -9 -8 -8 -7 -7 -7 -7 -7 -------- Run | Yrd Mat Min Exi Min Mat Sto Fac Low Low Zio Dee Hostile Shots Fired 262 | . 47 . . 13 34 53 41 . 5 . 69 Missed 117 | . 14 . . 4 21 27 23 . 2 . 26 Hits 145 | . 33 . . 9 13 26 18 . 3 . 43 Melee 4 | . . . . . . . . . . . 4 Projectile 141 | . 33 . . 9 13 26 18 . 3 . 39 Critical Strikes 2 | . . . . 1 . 1 . . . . . Damage Taken 2474 | . 315 . . 73 196 360 237 . 46 . 1247 Core 1028 | . 117 . . 50 58 91 75 . 32 . 605 Absorbed by Shields . | . . . . . . . . . . . . Regen/Repaired (Parts) 58 | . . . . . . 55 3 . . . . Core Remaining (%) 68 | 100 . . . 33 . 72 . . . . . Volleys Fired 99 | 8 55 . . 5 19 5 7 . . . . Largest 2 | 2 2 . . 2 2 2 1 . . . . Hottest 60 | 60 60 . . 40 50 50 25 . . . . Shots Fired 191 | 16 110 . . 10 38 10 7 . . . . Gun 191 | 16 110 . . 10 38 10 7 . . . . Cannon . | . . . . . . . . . . . . Launcher . | . . . . . . . . . . . . Special . | . . . . . . . . . . . . Kinetic 175 | 8 102 . . 10 38 10 7 . . . . Thermal 16 | 8 8 . . . . . . . . . . Explosive . | . . . . . . . . . . . . Electromagnetic . | . . . . . . . . . . . . Robot Hit Streak 9 | 3 8 . . 9 8 2 4 . . . . Robot Miss Streak 5 | 2 4 . . 1 5 2 1 . . . . Penetration Max . | . . . . . . . . . . . . Secondary Targets 3 | . 1 . . 1 . 1 . . . . . Max Gunslinging Chain 1 | . 1 . . 1 . 1 . . . . . Shots Hit Robots 132 | 9 70 . . 7 15 5 25 . . . 1 Core Hits 63 | 4 33 . . 4 9 3 10 . . . . Critical Kills . | . . . . . . . . . . . . Critical Parts Destroyed 1 | . . . . . . . 1 . . . . Critical Strikes 3 | . . . . . . . 3 . . . . Smash 1 | . . . . . . . 1 . . . . Sever 2 | . . . . . . . 2 . . . . Melee Attacks 59 | . . . . . . . 49 3 4 . 3 Impact 5 | . . . . . . . 5 . . . . Slashing 54 | . . . . . . . 44 3 4 . 3 Piercing . | . . . . . . . . . . . . Sneak Attacks 7 | . . . . . . . 7 . . . . Combat Hostiles . | . . . . . . . . . . . . Follow-up Attacks 4 | . . . . . . . 4 . . . . Damage Inflicted 2465 | 68 594 . . 72 345 96 1202 . . . 88 Guns 1223 | 68 594 . . 72 286 91 112 . . . . Cannons . | . . . . . . . . . . . . Explosions 59 | . . . . . 59 . . . . . . Melee 1178 | . . . . . . . 1090 . . . 88 Ramming 5 | . . . . . . 5 . . . . . Kinetic 1122 | 35 526 . . 72 286 91 112 . . . . Thermal 101 | 33 68 . . . . . . . . . . Explosive 59 | . . . . . 59 . . . . . . Electromagnetic . | . . . . . . . . . . . . Impact 102 | . . . . . . . 102 . . . . Slashing 1076 | . . . . . . . 988 . . . 88 Piercing . | . . . . . . . . . . . . Highest Corruption 4 | . 2 2 2 2 . . 3 3 3 3 4 Average Corruption 2 | . 2 2 2 2 . . 3 3 3 3 4 Corruption Purged . | . . . . . . . . . . . . Corruption Blocked 3 | . . . . . . . 3 . . . . Effects 13 | . 5 . 1 3 . . 2 1 1 . . Message Errors 1 | . 1 . . . . . . . . . . Matter Fused 4 | . 2 . . 2 . . . . . . . Heat Flow Errors 3 | . . . . 1 . . 1 . 1 . . Energy Discharges 2 | . 1 . . . . . 1 . . . . Data Loss (minor) 2 | . 1 . . . . . . 1 . . . Data Loss (major) 1 | . . . 1 . . . . . . . . Overload Shots . | . . . . . . . . . . . . Overflow Damage 175 | . . . . . 8 . 94 . . . 73 Projectiles . | . . . . . . . . . . . . Explosions 8 | . . . . . 8 . . . . . . Melee 167 | . . . . . . . 94 . . . 73 Knockbacks 1 | . . . . . . . 1 . . . . Impact 1 | . . . . . . . 1 . . . . Kinetic . | . . . . . . . . . . . . Secondary . | . . . . . . . . . . . . Self-Inflicted Damage 2 | . . . . . . 2 . . . . . Shots . | . . . . . . . . . . . . Rammed 1 | . . . . . . 1 . . . . . Targets Rammed 1 | . . . . . . 1 . . . . . Kicked . | . . . . . . . . . . . . Crushed . | . . . . . . . . . . . . Highest Temperature 251 | 20 24 . . 238 18 59 218 . 251 . 186 Average Temperature 47 | 8 6 . . 124 7 7 75 . 90 . 93 Received Heat Transfer 588 | . 48 . . . 90 180 75 . . . 195 Siege Activations . | . . . . . . . . . . . . Martial Activations . | . . . . . . . . . . . . Shielding Activations . | . . . . . . . . . . . . Robots Disrupted . | . . . . . . . . . . . . Combat Hostiles . | . . . . . . . . . . . . Robots Corrupted 2 | . . . . . . . 2 . . . . Combat Hostiles 2 | . . . . . . . 2 . . . . Parts Fried 1 | . . . . . . . 1 . . . . Impact Corruptions 3 | . . . . . . . 3 . . . . Robots Melted . | . . . . . . . . . . . . Combat Hostiles . | . . . . . . . . . . . . Parts Melted . | . . . . . . . . . . . . Heat Transferred 225 | 75 150 . . . . . . . . . . Parts Sabotaged . | . . . . . . . . . . . . Parts Stolen . | . . . . . . . . . . . . Parts Stripped . | . . . . . . . . . . . . Power Chain Reactions . | . . . . . . . . . . . . Alert | -11 -10 -10 -10 -9 -8 -8 -7 -7 -7 -7 -7 ------- Run | Yrd Mat Min Exi Min Mat Sto Fac Low Low Zio Dee Maximum Alert Level 1 | . 1 . . . . 1 1 . . . . Low Security (%) 81 | 100 87 100 . 100 100 95 63 . . . . Level 1 18 | . 12 . . . . 4 36 . . . . Level 2 . | . . . . . . . . . . . . Level 3 . | . . . . . . . . . . . . Level 4 . | . . . . . . . . . . . . Level 5 . | . . . . . . . . . . . . High Security . | . . . . . . . . . . . . Max Security . | . . . . . . . . . . . . Peak Influence 279 | 10 223 39 . 85 137 242 279 . . . . Initial 95 | . . 39 . . 33 39 95 . . . . Average 115 | 2 143 31 . 39 96 62 136 . . . . Influence Increases 1702 | 10 406 . . 135 200 343 578 . 30 . . Destroy 0b10 Robot/C 500 | . 200 . . 80 20 120 80 . . . . Destroy 0b10 Robot/NC 110 | 10 40 . . . 20 . 40 . . . . Destroy Leader 136 | . 48 . . 10 10 40 28 . . . . Allied During Kill 15 | . . . . . . 15 . . . . . Successful Hack 191 | . 28 . . . 19 18 126 . . . . Select Force Hacks 150 | . 60 . . . . 60 30 . . . . Disable Machine 45 | . . . . . 15 15 15 . . . . Destroy Structure 45 | . . . . . 26 . 19 . . . . Partial Spotted 195 | . 15 . . . 45 45 90 . . . . Lose Combat Pursuer 315 | . 15 . . 45 45 30 150 . 30 . . Influence Decreases 1702 | 10 306 81 19 50 192 224 541 113 67 99 . Entered New Map 522 | . . 61 19 . 52 54 117 93 27 99 . Time Decay 1014 | 10 286 20 . 50 110 120 358 20 40 . . Lost Part 100 | . 20 . . . 20 40 20 . . . . Lost Ally 45 | . . . . . 10 10 25 . . . . Purge Threat 21 | . . . . . . . 21 . . . . Squads Dispatched 24 | . 2 . . . 4 5 13 . . . . Investigation 13 | . 2 . . . 1 2 8 . . . . Extermination 3 | . . . . . . . 3 . . . . Reinforcement 6 | . . . . . 3 1 2 . . . . Assault 2 | . . . . . . 2 . . . . . Garrison . | . . . . . . . . . . . . Intercept . | . . . . . . . . . . . . Searches Triggered . | . . . . . . . . . . . . Construction Impeded . | . . . . . . . . . . . . Haulers Reinforced 1 | . . . . . . . 1 . . . . Active Scanning Responses . | . . . . . . . . . . . . Cargo Convoy Interrupts . | . . . . . . . . . . . . Stealth | -11 -10 -10 -10 -9 -8 -8 -7 -7 -7 -7 -7 --------- Run | Yrd Mat Min Exi Min Mat Sto Fac Low Low Zio Dee Distress Signals 7 | . 1 . . . 2 3 1 . . . . Communications Jammed . | . . . . . . . . . . . . Distress Signals . | . . . . . . . . . . . . Times Spotted 137 | . 15 . . 5 25 34 24 . 2 . 32 Peak Tracking Total 42 | . 3 . . 4 12 20 7 . 2 . 42 Tactical Retreats 13 | . 1 . . 1 3 1 5 . 1 . 1 Traps | -11 -10 -10 -10 -9 -8 -8 -7 -7 -7 -7 -7 ------- Run | Yrd Mat Min Exi Min Mat Sto Fac Low Low Zio Dee Traps Triggered 1 | . 1 . . . . . . . . . . Indirectly . | . . . . . . . . . . . . Trap Hack Attempts . | . . . . . . . . . . . . Triggered . | . . . . . . . . . . . . Disarmed . | . . . . . . . . . . . . Reprogrammed . | . . . . . . . . . . . . Reused . | . . . . . . . . . . . . Traps Extracted . | . . . . . . . . . . . . Installed . | . . . . . . . . . . . . Triggered . | . . . . . . . . . . . . Machines | -11 -10 -10 -10 -9 -8 -8 -7 -7 -7 -7 -7 ---------- Run | Yrd Mat Min Exi Min Mat Sto Fac Low Low Zio Dee Machines Disabled 9 | . . . . . 1 1 1 . . 3 3 Max in Single Turn 1 | . . . . . 1 1 1 . . 1 1 Garrison Access 2 | . . . . . 1 . 1 . . . . Machines Repaired . | . . . . . . . . . . . . Machines Dismantled 4 | . . . . . . 1 . . . 3 . Machines Sabotaged . | . . . . . . . . . . . . Overloaded Fab Kills . | . . . . . . . . . . . . Hacking | -11 -10 -10 -10 -9 -8 -8 -7 -7 -7 -7 -7 --------- Run | Yrd Mat Min Exi Min Mat Sto Fac Low Low Zio Dee Machines Accessed 51 | . 9 . 1 . 7 11 23 . . . . Terminals 33 | . 6 . . . 5 8 14 . . . . Fabricators 5 | . . . . . . . 5 . . . . Repair Stations 4 | . 1 . . . . 1 2 . . . . Recycling Units 5 | . 2 . . . . 2 1 . . . . Scanalyzers 1 | . . . . . 1 . . . . . . Garrison Access 2 | . . . . . 1 . 1 . . . . Total Hacks 142 | . 31 . 1 . 22 32 56 . . . . Successful 92 | . 16 . 1 . 13 23 39 . . . . Failed 50 | . 15 . . . 9 9 17 . . . . Catastrophic 4 | . . . . . . . 4 . . . . Database Lockouts . | . . . . . . . . . . . . Manual 108 | . 27 . . . 14 23 44 . . . . Terminals 102 | . 26 . . . 14 24 38 . . . . Fabricators 14 | . . . . . . . 14 . . . . Repair Stations 11 | . 3 . . . . 6 2 . . . . Recycling Units 5 | . 2 . . . . 2 1 . . . . Scanalyzers 6 | . . . . . 6 . . . . . . Garrison Access 3 | . . . . . 2 . 1 . . . . Terminal Hacks 17 | . 5 . 1 . 1 4 6 . . . . Record 1 | . . . 1 . . . . . . . . Part Schematic 2 | . . . . . 1 . 1 . . . . Robot Schematic 1 | . 1 . . . . . . . . . . Robot Analysis 2 | . 2 . . . . . . . . . . Open Door 2 | . . . . . . 2 . . . . . Branch Access Points 1 | . . . . . . . 1 . . . . Terminal Index 3 | . 1 . . . . 1 1 . . . . Fabricator Index 1 | . . . . . . . 1 . . . . Unreport Threat 1 | . . . . . . . 1 . . . . Zone Layout 3 | . 1 . . . . 1 1 . . . . Fabricator Hacks 9 | . . . . . . . 9 . . . . Load Schematic 6 | . . . . . . . 6 . . . . Build 3 | . . . . . . . 3 . . . . Repair Station Hacks 7 | . 1 . . . . 6 . . . . . Scan Component 4 | . 1 . . . . 3 . . . . . Repair 3 | . . . . . . 3 . . . . . Recycling Unit Hacks . | . . . . . . . . . . . . Scanalyzer 6 | . . . . . 6 . . . . . . Insert Component 3 | . . . . . 3 . . . . . . Analyze 3 | . . . . . 3 . . . . . . Garrison Access Hacks 2 | . . . . . 1 . 1 . . . . Seal Access 2 | . . . . . 1 . 1 . . . . Unauthorized Hacks 51 | . 10 . . . 5 13 23 . . . . Terminals 40 | . 8 . . . 5 11 16 . . . . Track 1 | . . . . . . . 1 . . . . Assimilate 6 | . . . . . 1 1 4 . . . . Botnet 14 | . 3 . . . 1 4 6 . . . . Disrupt 1 | . . . . . . 1 . . . . . Skim 18 | . 5 . . . 3 5 5 . . . . Fabricators 4 | . . . . . . . 4 . . . . Haulers 1 | . . . . . . . 1 . . . . Recompile 3 | . . . . . . . 3 . . . . Repair Stations 2 | . . . . . . . 2 . . . . Patch 2 | . . . . . . . 2 . . . . Recycling Units 5 | . 2 . . . . 2 1 . . . . Tunnel 5 | . 2 . . . . 2 1 . . . . Scanalyzers . | . . . . . . . . . . . . Garrison Access . | . . . . . . . . . . . . Data Cores Recovered . | . . . . . . . . . . . . Used . | . . . . . . . . . . . . Hacking Detections 34 | . 7 . . . 5 7 15 . . . . Full Trace Events 4 | . 1 . . . 1 . 2 . . . . Feedback Events 1 | . . . . . . . 1 . . . . Hackware Fried 1 | . . . . . . . 1 . . . . Feedback Blocked . | . . . . . . . . . . . . Robot Schematics Acquired 1 | . 1 . . . . . . . . . . Robots Built . | . . . . . . . . . . . . Authchips . | . . . . . . . . . . . . Time . | . . . . . . . . . . . . Total Robot Build Rating . | . . . . . . . . . . . . Part Schematics Acquired 5 | . . . . . 4 . 1 . . . . Parts Built 6 | . . . . . . . 6 . . . . Authchips 3 | . . . . . . . 3 . . . . Time 125 | . . . . . . . 125 . . . . Total Part Build Rating 24 | . . . . . . . 24 . . . . Parts Repaired 3 | . . . . . . 3 . . . . . Time 102 | . . . . . . 102 . . . . . Parts Recycled . | . . . . . . . . . . . . Recycled Matter . | . . . . . . . . . . . . Retrieved Matter . | . . . . . . . . . . . . Retrieved Components . | . . . . . . . . . . . . Parts Scanalyzed 3 | . . . . . 3 . . . . . . Part Schematics Acquired 3 | . . . . . 3 . . . . . . Parts Damaged . | . . . . . . . . . . . . Bothacking | -11 -10 -10 -10 -9 -8 -8 -7 -7 -7 -7 -7 ------------ Run | Yrd Mat Min Exi Min Mat Sto Fac Low Low Zio Dee Used RIF Installer . | . . . . . . . . . . . . Robots Hacked . | . . . . . . . . . . . . Non-combat . | . . . . . . . . . . . . Combat . | . . . . . . . . . . . . Robot Hacks Applied . | . . . . . . . . . . . . Relay Couplers Released . | . . . . . . . . . . . . Fabnet Peak Effective % . | . . . . . . . . . . . . Robots Rewired . | . . . . . . . . . . . . Allies Hacked . | . . . . . . . . . . . . Hacks Repelled . | . . . . . . . . . . . . Allies | -11 -10 -10 -10 -9 -8 -8 -7 -7 -7 -7 -7 -------- Run | Yrd Mat Min Exi Min Mat Sto Fac Low Low Zio Dee Total Allies 12 | . . . . . 1 3 4 . . 4 . Largest Group 4 | . . . . . 1 2 3 . . 4 4 Highest-Rated Group 85 | . . . . . 26 62 46 . . 85 85 Highest-Rated Ally 31 | . . . . . 26 31 26 . . 31 31 Total Orders . | . . . . . . . . . . . . Ally Attacks 34 | . . . . . . 7 . . . . 27 Total Damage 2601 | . . . . . . 148 . . . . 2453 Kills 11 | . . . . . . 3 . . . . 8 Allies Corrupted . | . . . . . . . . . . . . Allies Melted . | . . . . . . . . . . . . Intel | -11 -10 -10 -10 -9 -8 -8 -7 -7 -7 -7 -7 ------- Run | Yrd Mat Min Exi Min Mat Sto Fac Low Low Zio Dee Active Infowar (turns) 2844 | 5 636 47 76 152 224 252 915 57 98 323 59 Terrain 2844 | 5 636 47 76 152 224 252 915 57 98 323 59 Robot Analysis Total 2 | . 2 . . . . . . . . . . Derelict Logs Recovered 5 | . . 1 . 1 . . . 2 1 . . Drone Launches . | . . . . . . . . . . . . Drone Recoveries . | . . . . . . . . . . . . Exploration | -11 -10 -10 -10 -9 -8 -8 -7 -7 -7 -7 -7 ------------- Run | Yrd Mat Min Exi Min Mat Sto Fac Low Low Zio Dee Turns Passed 2908 | 44 636 47 76 152 224 252 915 57 98 323 84 Spaces Moved 5957 | 34 696 86 189 327 496 396 2122 217 391 708 295 Core 76 | 34 42 . . . . . . . . . . Treads . | . . . . . . . . . . . . Legs . | . . . . . . . . . . . . Wheels . | . . . . . . . . . . . . Hover . | . . . . . . . . . . . . Flight 5881 | . 654 86 189 327 496 396 2122 217 391 708 295 Fastest Speed 6 | 50 37 40 40 37 26 27 22 22 6 22 6 Average Speed 28 | 50 39 40 40 38 29 29 27 22 21 22 21 Slowest Speed 120 | 50 120 40 40 40 32 32 32 22 22 22 45 Overloaded Moves 38 | . . . . . . . . . 6 . 32 Propulsion Burnouts . | . . . . . . . . . . . . Robots Hopped 61 | . 9 . . 2 21 18 8 . 1 . 2 Potential Cave-ins . | . . . . . . . . . . . . Cave-ins Triggered . | . . . . . . . . . . . . Exploration Rate (%) 56 | 3 97 28 53 72 41 67 60 50 65 83 55 Regions Visited 11 Branch Regions 8 Pre-discovered Areas 11 | . 2 2 1 . . 2 3 . . 1 . Known Exits Taken 5 | . . 1 . 1 . 1 1 1 . . . Unknown Exits Taken 6 | 1 1 . 1 . 1 . . . 1 1 . Scrap Searched 10 | . . . . 1 . . . 3 3 3 . Spaces Dug 24 | . . . . . . . 19 3 2 . . Terrain Destroyed 54 | . . . . . 30 . 19 3 2 . . Melee 24 | . . . . . . . 19 3 2 . . Projectile . | . . . . . . . . . . . . AOE 30 | . . . . . 30 . . . . . . Terrain Rammed . | . . . . . . . . . . . . Walls Destroyed . | . . . . . . . . . . . . Machines Disabled . | . . . . . . . . . . . . Actions | -11 -10 -10 -10 -9 -8 -8 -7 -7 -7 -7 -7 --------- Run | Yrd Mat Min Exi Min Mat Sto Fac Low Low Zio Dee Total 6762 | 44 961 97 188 344 531 488 2363 220 396 819 311 Wait 535 | . 199 12 . 6 4 88 149 1 3 72 1 Move 5830 | 33 677 85 188 322 456 362 2105 216 388 707 291 Hop 56 | . 9 . . 2 18 16 8 . 1 . 2 Pick Up 28 | . 5 . . 2 8 3 6 . . . 4 Fast Attach 36 | 3 5 . . 1 4 1 17 . . 4 1 Attach 16 | . 2 . . 1 2 1 8 . . . 2 Detach 5 | . 2 . . . . . 3 . . . . Swap 23 | . 3 . . 2 7 4 4 . . 3 . Drop 50 | . 4 . . 3 13 1 16 . . 6 7 Fire 99 | 8 55 . . 5 19 5 7 . . . . Melee 50 | . . . . . . . 40 3 4 . 3 Ram . | . . . . . . . . . . . . Kick . | . . . . . . . . . . . . Crush . | . . . . . . . . . . . . Escape Stasis . | . . . . . . . . . . . . Rewire . | . . . . . . . . . . . . Trap . | . . . . . . . . . . . . Miscellaneous 34 | . . . . . . 7 . . . 27 . Route ------- -11/Scrapyard -10/Materials (discovered 5 exits: *Mat x3 / [*Min] / Sub) -10/Mines (discovered 4 exits: *Mat x2 / *Exi / Sub) -10/Exiles (discovered 2 exits: [*Min x2]) -9/Mines -8/Materials (discovered 4 exits: *Fac x3 / *Sto) -8/Storage (discovered 2 exits: *Fac / [Rec]) -7/Factory (discovered 4 exits: [*Fac x2] / *Low x2) -7/Lower Caves -7/Lower Caves -7/Zion (discovered 2 exits: [*Dee] / [*Pro]) -7/Deep Caves History --------- Turn | Location | Event 9 | -11/Scrapyard | Discovered new exit (range 14) 45 | -11/Scrapyard | Entered Materials 169 | -10/Materials | Discovered new exit (range 10) 231 | -10/Materials | Discovered new exit (range 15) 372 | -10/Materials | Discovered new exit (range 6) 405 | -10/Materials | Build established: Scavenger-Mutant 433 | -10/Materials | Discovered new exit (range 16) 500 | -10/Materials | Identified exit to Subcaves 500 | -10/Materials | Learned location of 1 exit from Materials 539 | -10/Materials | Learned Storage trap positions 567 | -10/Materials | Learned location of 2 exits from Subcaves 586 | -10/Materials | Loaded intel: 23 trap records 595 | -10/Materials | Learned location of 2 exits from Mines 612 | -10/Materials | Learned Storage emergency access door positions 638 | -10/Materials | Learned location of 2 exits from Subcaves 681 | -10/Materials | Entered Mines 682 | -10/Mines | Learned location of Storage (-8) 682 | -10/Mines | Identified exit to Materials 683 | -10/Mines | Identified exit to Exiles 714 | -10/Mines | Met a Derelict bent on vengeance 715 | -10/Mines | Deemed a non-threat by the Exiles lab entrance 728 | -10/Mines | Entered Exiles 735 | -10/Exiles | Discovered new exit (range 15) 739 | -10/Exiles | Met 8R-AWN 745 | -10/Exiles | Met EX-HEX 761 | -10/Exiles | Met EX-DEC 763 | -10/Exiles | Learned location of Zion (-7) 770 | -10/Exiles | Met EX-BIN 799 | -10/Exiles | Discovered new exit (range 14) 804 | -10/Exiles | Entered Mines 832 | -9/Mines | Identified exit to Materials 861 | -9/Mines | Core integrity fell below 50% 894 | -9/Mines | Found a hidden stash of uninstalled traps 956 | -9/Mines | Entered Materials 956 | -8/Materials | Evolved 4 slots: Propulsion x2, Utility x2 957 | -8/Materials | Identified exit to Factory 1104 | -8/Materials | Discovered new exit (range 14) 1134 | -8/Materials | Discovered exit to Factory (range 16) 1178 | -8/Materials | Discovered exit to Factory (range 15) 1180 | -8/Materials | Entered Storage 1181 | -8/Storage | Loaded intel: 9 trap records 1222 | -8/Storage | Repaired Cesium-ion Thruster? 1266 | -8/Storage | Build established: Scavenger-Sprinter 1285 | -8/Storage | Repaired Cesium-ion Thruster 1312 | -8/Storage | Repaired Lgt. Ion Engine 1343 | -8/Storage | Discovered new exit (range 17) 1378 | -8/Storage | Met a pair of Derelict thieves 1426 | -8/Storage | Discovered exit to Factory (range 9) 1432 | -8/Storage | Entered Factory 1432 | -7/Factory | Evolved 2 slots: Utility x2 1462 | -7/Factory | Lost 3 parts (2n1w) 1633 | -7/Factory | Identified exit to Lower Caves 1708 | -7/Factory | Learned location of 1 exit from Upper Caves 1711 | -7/Factory | Discovered new exit (range 13) 1763 | -7/Factory | Build established: Hacker-Sprinter 1825 | -7/Factory | Loaded intel: 4 garrison access locations 1867 | -7/Factory | Learned Extension trap positions 1897 | -7/Factory | Learned Extension emergency access door positions 1915 | -7/Factory | Learned Extension stockpile data 1947 | -7/Factory | Learned Factory stockpile data 2027 | -7/Factory | Learned 2 Extension zone layouts 2124 | -7/Factory | Discovered new exit (range 8) 2252 | -7/Factory | Hacking Suite fried by hacking feedback 2289 | -7/Factory | Fabricated Plasma Cutter (x2) 2303 | -7/Factory | Fabricated Imp. Surge Thruster (x2) 2337 | -7/Factory | Fabricated Imp. Surge Thruster (x2) 2347 | -7/Factory | Entered Lower Caves 2348 | -7/Lower Caves | Encountered a Warlord checkpoint 2350 | -7/Lower Caves | Identified exit to Lower Caves 2404 | -7/Lower Caves | Entered another Lower Caves area 2414 | -7/Lower Caves | Learned location of 2 exits from Factory 2502 | -7/Lower Caves | Encountered a Warlord checkpoint 2502 | -7/Lower Caves | Discovered new exit (range 3) 2502 | -7/Lower Caves | Entered Zion 2524 | -7/Zion | Gained Derelict followers 2526 | -7/Zion | Discovered new exit (range 15) 2533 | -7/Zion | System corruption cleaned by Quarantine Array 2569 | -7/Zion | Found Prototype Launcher 2569 | -7/Zion | Identified Gui. Missile Launcher 2594 | -7/Zion | Given A8's code to call for help 2628 | -7/Zion | Learned Factory terminal intel 2635 | -7/Zion | Learned location of Warlord (-5) 2648 | -7/Zion | Given the Hacking Drone Bay 2764 | -7/Zion | Discovered new exit (range 5) 2767 | -7/Zion | Saw the warning signs outside the Deep Caves entrance 2825 | -7/Zion | Entered Deep Caves 2825 | -7/Deep Caves | Accompanied by 4 allies 2869 | -7/Deep Caves | Z-Facility disabled 2874 | -7/Deep Caves | Found Surveybot 24 Scanner 2876 | -7/Deep Caves | Found Surveybot 24 Chip 2886 | -7/Deep Caves | Spotted AG-84121 2887 | -7/Deep Caves | Triggered Deep Caves wall 2887 | -7/Deep Caves | Exposed GOLEM chamber 2889 | -7/Deep Caves | Found GOLEM Unit 2895 | -7/Deep Caves | Spotted AS-52898 2897 | -7/Deep Caves | Core integrity fell below 50% 2897 | -7/Deep Caves | Found GOLEM Unit 2898 | -7/Deep Caves | Found GOLEM Unit 2905 | -7/Deep Caves | Core integrity fell below 20% 2907 | -7/Deep Caves | Attacked by Z-Imprinter 2909 | -7/Deep Caves | Destroyed by AG-84121 with Assembled Focal Cannon Last Messages --------------- 02895_ as-25028 released from Mobile Assembly Unit. 02895_ Cld. VTOL Module destroyed. 02896_ Imp. Surge Thruster destroyed. 02896_ Dropped Chainsword. 02896_ Knocked back. 02897_ Acquired GOLEM Unit. 02897_ Imp. Surge Thruster destroyed. 02898_ Dropped Mic. Nuclear Core. 02898_ Mak. System Shield destroyed. 02898_ System corrupted by crushing effect (+4). 02898_ A GOLEM Unit tumbles out of the Wall Chamber. 02898_ Acquired GOLEM Unit. 02899_ GOLEM Unit beginning Asb. Alloy Leg integration. 02901_ Discarded Asb. Alloy Leg. Z-Imprinter: GET AWAY FROM HERE! I've worked too hard for our future just to have you ruin everything! Map ----- +----------------------------------------------------+ | ?????????????????????????????????????????????????? | | ?????????????????????????????????????????????????? | | ?????????????????????????????????????????????????? | | ????????????????????????????????????????????????? | | ??????????????????????????????? ?????????????#??? | | ??????????????????????????????? ???????????????? | | ?? ????????????????????#????# ???????????????? | | ?? ? #??????????????# ??????????????? | | = = ???????????## ???#??????????? | | #?????????# ?#???????????? | | ????????? ?????????#???? | | ! !* #?????????? #???#????????? | | ##??????????? #####???????? | | #????#??????? ######### | | ! #?????????????# ## | | ? * #??????????????# | | ?# ! #?????????????## ###=[ | | ??" = * #????########## #" % | | ??" = #????# ### | | ?"" #????# ######## | | ""* = ##???# #?##???#### | | " = ! #???# #?????????## | | ## / * #???# #??????????# | | ?" | g #???# #????????## | | ?" aa ##### ########?# | | ?" aaa * @! I #?# | | ?""" | a #;###???## # | | ?" #?????#??## ## | | ?"" ### ##????????? #### | | ?" "## #???????? ##??# | | ?"" ##### ##?????????### #??# | | ?" ; # #???####????????????# ??## | | ?" #### ## ## ##???????????????????# ???# | | ?""" ###??# ## ####????????????????????## #???? | | ??" ????#### #?????????????????????????##????? | | ??######????????#????????????????????????????????? | | | | | | | | | | | | | | | | | | | | | | | | | | | | | +----------------------------------------------------+ Best States ------------- Heat Dissipation 34 Energy Generation 17 Energy Capacity 200 Matter Stores 300 Matter Capacity 300 Sight Range 16 Terrain Scan Range 16 Terrain Scan Density 160 Corruption Block 8 Evasion (%) 73 Offensive Hacking 30 Defensive Hacking 11 Authchip Count 3 Item Schematics ----------------- Cesium-ion Thruster | -8/Materials | Scanalyzed Plasma Cutter | -8/Materials | Scanalyzed Minigun | -8/Materials | Scanalyzed Surge Thruster | -8/Materials | Hacked Imp. Surge Thruster | -7/Factory | Hacked Robot Schematics ------------------ M-13 Machinist | -10/Materials | Hacked Fabricated ------------ Plasma Cutter | x2 | -7/Factory | Authchip Imp. Surge Thruster | x2 | -7/Factory | Authchip Imp. Surge Thruster | x2 | -7/Factory | Authchip Repaired ---------- Cesium-ion Thruster | 40% | -8/Storage Cesium-ion Thruster | 40% | -8/Storage Lgt. Ion Engine | 37% | -8/Storage Alien Tech Used ----------------- None Achievements -------------- None Challenges ------------ None Game ------ Seed AluminumIonSlayer Manual? 0 Play Time 01:02:45 Cumulative 322.4 hours Start 2025.07.09 @ 16:22:21 End 2025.07.09 @ 17:25:50 Sessions 1 Manual Loads 0 Difficulty Rogue Special Mode None Game No. 158 Rogue 158 Adventurer 0 Explorer 0 Win Type - Total 22 Types 8/1/5/1/5/1/0/0/0/1 Lore% 88 Gallery% 78 Achievement% 76 Wizard Run 0 Options --------- Layout 1 ASCII 0 Keyboard 0 Movement Numpad Keybinds 0 Fullscreen 1 Font 24/Smallcaps Map View 50x35 Zoom Use 0% Tactical HUD 1 Map Filters NONE Filters NONE Steam 1 RUN: 34329920-d41e-4c56-8841-febb1651283c